Department Family,Date Paid,Expense Type,Expense Area,Supplier,Transaction Number,Amount,Vat Inclusive,
Crown Prosecution Service ,01/07/20,Legal Claims Provision utilised in the year,Balance Sheet,Government Legal Department,Z1717748-R1 interim costs,"80,000.00",,
Crown Prosecution Service ,02/07/20,Operating lease rentals Property,Estate and FM: Programme,Her Majestys Courts Tribunals Service,2532596,"96,341.74",,
Crown Prosecution Service ,02/07/20,Operating lease rentals Property,Estate and FM: Programme,Her Majestys Courts Tribunals Service,2532597,"73,388.12",,
Crown Prosecution Service ,02/07/20,Printing Costs,Print Contract,Xerox (UK) Ltd,900200046,"20,914.61",Y,
Crown Prosecution Service ,02/07/20,Recoverable VAT control,Balance Sheet,Xerox (UK) Ltd,900200046,"10,147.84",Y,
Crown Prosecution Service ,02/07/20,Operating lease rentals � IT and Equipment,Print Contract,Xerox (UK) Ltd,900200046,"29,824.59",Y,
Crown Prosecution Service ,02/07/20,Apprenticeship Levy payments Permanent,Other Corporate Admin Payments,HM Revenue and Customs,948PB000021422103,"6,122.94",,
Crown Prosecution Service ,02/07/20,Apprenticeship Levy payments Permanent,Other Corporate Programme Payments,HM Revenue and Customs,948PB000021422103,"95,926.06",,
Crown Prosecution Service ,02/07/20,Monthly Payroll Settlement,Balance Sheet,HM Revenue and Customs,948PB000021422103,"6,848,954.33",,
Crown Prosecution Service ,02/07/20,IT Professional Services Implementation Hardware & Software: Non Capital Purchases,DTS Programme Project Cost,Avature Limited London,UK02415.,"82,680.00",Y,
Crown Prosecution Service ,03/07/20,Recoverable VAT control,Balance Sheet,CGI IT UK Ltd,GB014040633,"58,720.48",Y,
Crown Prosecution Service ,03/07/20,IT services,DTS Programme Project Cost,CGI IT UK Ltd,GB014040633,"293,602.38",,
Crown Prosecution Service ,03/07/20,Recoverable VAT control,Balance Sheet,CGI IT UK Ltd,GB014040634,"5,952.80",Y,
Crown Prosecution Service ,03/07/20,IT services,DTS Programme Project Cost,CGI IT UK Ltd,GB014040634,"29,764.00",,
Crown Prosecution Service ,03/07/20,Recoverable VAT control,Balance Sheet,CGI IT UK Ltd,GB014040635,"6,090.80",Y,
Crown Prosecution Service ,03/07/20,IT services,DTS Programme Project Cost,CGI IT UK Ltd,GB014040635,"30,454.00",,
Crown Prosecution Service ,03/07/20,IT services,DTS Programme Project Cost,CGI IT UK Ltd,GB014040636,"102,196.00",,
Crown Prosecution Service ,03/07/20,Recoverable VAT control,Balance Sheet,CGI IT UK Ltd,GB014040636,"20,439.20",Y,
Crown Prosecution Service ,03/07/20,Recoverable VAT control,Balance Sheet,CGI IT UK Ltd,GB014040638,"17,418.20",Y,
Crown Prosecution Service ,03/07/20,IT services,DTS Programme Project Cost,CGI IT UK Ltd,GB014040638,"87,091.00",,
Crown Prosecution Service ,03/07/20,Recoverable VAT control,Balance Sheet,CGI IT UK Ltd,GB014040640,"73,135.19",Y,
Crown Prosecution Service ,03/07/20,IT services,DTS Programme Project Cost,CGI IT UK Ltd,GB014040640,"365,675.94",,
Crown Prosecution Service ,03/07/20,IT services,IT Compass Contract,Vodafone Ltd formerly Cable and Wireless Milton Keynes,UK10/062020/1352,"33,564.20",Y,
Crown Prosecution Service ,06/07/20,Crown Court Graduated Fee Scheme,London North Complex Casework Unit,Nine Bedford Row (9 Bedford Row),139240jb,"25,170.17",Y,
Crown Prosecution Service ,06/07/20,Recoverable VAT control,Balance Sheet,Cabinet Office RM Shared Services,3793945,"7,616.14",Y,
Crown Prosecution Service ,06/07/20,Recruitment general costs,Senior Staffing,Cabinet Office RM Shared Services,3793945,"38,080.70",,
Crown Prosecution Service ,06/07/20,IT services,PSN Connectivity Contract,Century Link,430724/1026040,"181,852.08",Y,
Crown Prosecution Service ,07/07/20,HR investigation services,Employee Relations,Axis HR Consulting London,119,"28,270.76",,
Crown Prosecution Service ,08/07/20,Recoverable VAT control,Balance Sheet,Mendip Media Group Ltd Tiverton,0000000157,"6,317.60",Y,
Crown Prosecution Service ,08/07/20,Transcriptions and Translation,Other Corporate Programme Payments,Mendip Media Group Ltd Tiverton,0000000157,"31,588.00",,
Crown Prosecution Service ,08/07/20,Recoverable VAT control,Balance Sheet,Xerox (UK) Ltd,900200875,"11,456.83",Y,
Crown Prosecution Service ,08/07/20,Operating lease rentals � IT and Equipment,Print Contract,Xerox (UK) Ltd,900200875,"27,359.75",,
Crown Prosecution Service ,08/07/20,Printing Costs,Print Contract,Xerox (UK) Ltd,900200875,"29,924.41",,
Crown Prosecution Service ,08/07/20,Recoverable VAT control,Balance Sheet,CGI IT UK Ltd,GB014040644,"5,272.20",Y,
Crown Prosecution Service ,08/07/20,IT services,DTS Programme Project Cost,CGI IT UK Ltd,GB014040644,"26,361.00",,
Crown Prosecution Service ,08/07/20,IT services,DTS Programme Project Cost,CGI IT UK Ltd,GB014041038,"80,771.36",Y,
Crown Prosecution Service ,08/07/20,IT services,DTS Programme Project Cost,CGI IT UK Ltd,GB014041090,"52,556.44",Y,
Crown Prosecution Service ,08/07/20,Recoverable VAT control,Balance Sheet,CGI IT UK Ltd,GB014041178,"16,376.29",Y,
Crown Prosecution Service ,08/07/20,IT services,Service Desk Contract,CGI IT UK Ltd,GB014041178,"81,881.47",,
Crown Prosecution Service ,10/07/20,Crown Court Very High Cost Cases Full Scheme,SFD North,Exchange Chambers - Liverpool & Leeds,143723 June AHQC CIR,"25,935.00",Y,
Crown Prosecution Service ,10/07/20,IT non capital software licences,Legal Reference and ICT Licenses,Outsystems LTD London,20200400161,"453,701.68",Y,
Crown Prosecution Service ,10/07/20,External legal advice - Civil litigation,Other Corporate Programme Payments,Government Legal Department,479968,"52,699.66",Y,
Crown Prosecution Service ,10/07/20,External legal advice - Civil litigation,Other Corporate Programme Payments,Government Legal Department,480069,"46,626.19",Y,
Crown Prosecution Service ,10/07/20,External legal advice - Civil litigation,Other Corporate Programme Payments,Government Legal Department,480983,"38,420.63",Y,
Crown Prosecution Service ,13/07/20,IT services,DTS Programme Project Cost,TechForce Ltd Aberdeen,INV-0665,"48,360.00",Y,
Crown Prosecution Service ,14/07/20,Operating lease rentals Property,Estate and FM: Programme,HM Revenue and Customs,18000005052020,"63,669.93",,
Crown Prosecution Service ,14/07/20,Landlord service charge,Estate and FM: Programme,HM Revenue and Customs,18000005052020,"22,666.58",,
Crown Prosecution Service ,14/07/20,IT non capital software licences,Legal Reference and ICT Licenses,Thomson Reuters (Professional) UK Limited,6800945675,"950,673.60",,
Crown Prosecution Service ,15/07/20,Recoverable VAT control,Balance Sheet,Century Link,130115224/1004968,"31,697.96",Y,
Crown Prosecution Service ,15/07/20,IT services,PSN Services Contract,Century Link,130115224/1004968,"158,489.82",,
Crown Prosecution Service ,15/07/20,Recoverable VAT control,Balance Sheet,Century Link,130116027/1004390,"30,434.70",Y,
Crown Prosecution Service ,15/07/20,IT services,PSN Connectivity Contract,Century Link,130116027/1004390,"152,173.53",,
Crown Prosecution Service ,15/07/20,Recoverable VAT control,Balance Sheet,Trustmarque Solutions Ltd,2302270,"7,992.23",Y,
Crown Prosecution Service ,15/07/20,IT non capital software licences,Legal Reference and ICT Licenses,Trustmarque Solutions Ltd,2302270,"39,961.15",,
Crown Prosecution Service ,15/07/20,IT services,IT Compass Contract,Accenture (UK) Ltd London,3003475653,"80,640.00",Y,
Crown Prosecution Service ,15/07/20,Recoverable VAT control,Balance Sheet,CGI IT UK Ltd,GB014041472,"24,376.34",Y,
Crown Prosecution Service ,15/07/20,IT services,Apps and Hosting Contract,CGI IT UK Ltd,GB014041472,"121,881.70",,
Crown Prosecution Service ,16/07/20,IT services,ERP Project: Programme,Accenture (UK) Ltd London,3003468175,"79,920.00",Y,
Crown Prosecution Service ,16/07/20,IT non capital software licences,Legal Reference and ICT Licenses,Egress Sotware Technologies Ltd London,INVUK18464,"72,000.00",Y,
Crown Prosecution Service ,17/07/20,Shared services,Other Corporate Programme Payments,Her Majestys Courts Tribunals Service,2532856,"197,823.39",,
Crown Prosecution Service ,17/07/20,Recoverable VAT control,Balance Sheet,Her Majestys Courts Tribunals Service,2532856,"39,564.67",Y,
Crown Prosecution Service ,17/07/20,External legal advice - HR casework,Litigation,Government Legal Department,482853,"34,485.49",Y,
Crown Prosecution Service ,20/07/20,IT services,Estate and FM: Programme,Century Link,110099888/997629,"44,018.75",Y,
Crown Prosecution Service ,20/07/20,IT services,DTS Programme Project Cost,Century Link,110099888/997629,"50,213.19",Y,
Crown Prosecution Service ,20/07/20,IT services,DTS Programme Project Cost,Century Link,121389264/1004116,"58,140.16",Y,
Crown Prosecution Service ,20/07/20,IT Professional Services Design & Development Hardware & Software: Non Capital Purchases,DTS Programme Project Cost,eSynergy Solutions Ltd,CPS005 1,"56,430.00",Y,
Crown Prosecution Service ,20/07/20,IT services,IT Compass Contract,Vodafone Ltd formerly Cable and Wireless Milton Keynes,UK10/072020/3823,"33,564.20",Y,
Crown Prosecution Service ,21/07/20,General Professional Services,Strategy and Policy,PricewaterhouseCoopers,1355417092,"74,880.00",Y,
Crown Prosecution Service ,21/07/20,Transcriptions and Translation,Other Corporate Programme Payments,AVR Transcription Ltd Bolton,34474-JUN20,"42,556.65",,
Crown Prosecution Service ,21/07/20,Recoverable VAT control,Balance Sheet,AVR Transcription Ltd Bolton,34474-JUN20,"8,511.33",Y,
Crown Prosecution Service ,21/07/20,Crown Court Graduated Fee Scheme,London North Complex Casework Unit,6 Kings Bench Walk- Chambers of D Fisher & D Perry,98586 HENRY 1 TC,"53,568.00",Y,
Crown Prosecution Service ,22/07/20,FCO platform charges excluding leases,International External Funding,Foreign And Commonwealth Office,1125328,"8,325.00",,
Crown Prosecution Service ,22/07/20,FCO platform charges excluding leases,International External Funding,Foreign And Commonwealth Office,1125328,"9,875.00",,
Crown Prosecution Service ,22/07/20,FCO platform charges excluding leases,International Internal Funding,Foreign And Commonwealth Office,1125328,"8,325.00",,
Crown Prosecution Service ,22/07/20,FCO platform charges excluding leases,International External Funding,Foreign And Commonwealth Office,1125328,"14,400.00",,
Crown Prosecution Service ,22/07/20,Overseas Residential accommodation,International Internal Funding,Foreign And Commonwealth Office,1125328,"6,825.00",,
Crown Prosecution Service ,22/07/20,FCO platform charges excluding leases,International External Funding,Foreign And Commonwealth Office,1125328,"11,725.00",,
Crown Prosecution Service ,22/07/20,FCO platform charges excluding leases,International Liaison Magistrates,Foreign And Commonwealth Office,1125328,"11,525.00",,
Crown Prosecution Service ,22/07/20,Overseas Residential accommodation,International External Funding,Foreign And Commonwealth Office,1125328,"3,400.00",,
Crown Prosecution Service ,22/07/20,Overseas Residential accommodation,International External Funding,Foreign And Commonwealth Office,1125328,"9,075.00",,
Crown Prosecution Service ,22/07/20,FCO platform charges excluding leases,International External Funding,Foreign And Commonwealth Office,1125328,"10,000.00",,
Crown Prosecution Service ,22/07/20,Workplace Adjustments,International External Funding,Foreign And Commonwealth Office,1125328,"5,100.00",,
Crown Prosecution Service ,22/07/20,Overseas Residential accommodation,International External Funding,Foreign And Commonwealth Office,1125328,"6,900.00",,
Crown Prosecution Service ,22/07/20,FCO platform charges excluding leases,International External Funding,Foreign And Commonwealth Office,1125328,"10,500.00",,
Crown Prosecution Service ,22/07/20,Overseas Residential accommodation,International External Funding,Foreign And Commonwealth Office,1125328,"5,275.00",,
Crown Prosecution Service ,22/07/20,Overseas Residential accommodation,International External Funding,Foreign And Commonwealth Office,1125328,"5,675.00",,
Crown Prosecution Service ,22/07/20,Overseas Residential accommodation,International Liaison Magistrates,Foreign And Commonwealth Office,1125328,"18,900.00",,
Crown Prosecution Service ,22/07/20,Overseas Residential accommodation,International External Funding,Foreign And Commonwealth Office,1125328,"6,025.00",,
Crown Prosecution Service ,22/07/20,Overseas Residential accommodation,International External Funding,Foreign And Commonwealth Office,1125328,"7,000.00",,
Crown Prosecution Service ,22/07/20,FCO platform charges excluding leases,International External Funding,Foreign And Commonwealth Office,1125328,"10,900.00",,
Crown Prosecution Service ,22/07/20,FCO platform charges excluding leases,International External Funding,Foreign And Commonwealth Office,1125328,"7,125.00",,
Crown Prosecution Service ,22/07/20,Workplace Adjustments,International External Funding,Foreign And Commonwealth Office,1125328,"7,000.00",,
Crown Prosecution Service ,22/07/20,Overseas Residential accommodation,International Liaison Magistrates,Foreign And Commonwealth Office,1125328,"13,500.00",,
Crown Prosecution Service ,22/07/20,FCO platform charges excluding leases,International External Funding,Foreign And Commonwealth Office,1125328,"14,700.00",,
Crown Prosecution Service ,22/07/20,Overseas Residential accommodation,International External Funding,Foreign And Commonwealth Office,1125328,"3,525.00",,
Crown Prosecution Service ,22/07/20,FCO platform charges excluding leases,International External Funding,Foreign And Commonwealth Office,1125328,"12,100.00",,
Crown Prosecution Service ,22/07/20,FCO platform charges excluding leases,International Liaison Magistrates,Foreign And Commonwealth Office,1125328,"11,725.00",,
Crown Prosecution Service ,22/07/20,FCO platform charges excluding leases,International External Funding,Foreign And Commonwealth Office,1125328,"25,050.00",,
Crown Prosecution Service ,22/07/20,FCO platform charges excluding leases,International External Funding,Foreign And Commonwealth Office,1125328,"18,250.00",,
Crown Prosecution Service ,22/07/20,FCO platform charges excluding leases,International External Funding,Foreign And Commonwealth Office,1125328,"6,050.00",,
Crown Prosecution Service ,22/07/20,Overseas Residential accommodation,International External Funding,Foreign And Commonwealth Office,1125328,"4,100.00",,
Crown Prosecution Service ,22/07/20,FCO platform charges excluding leases,International Liaison Magistrates,Foreign And Commonwealth Office,1125328,"29,100.00",,
Crown Prosecution Service ,22/07/20,Overseas Residential accommodation,International External Funding,Foreign And Commonwealth Office,1125328,"12,825.00",,
Crown Prosecution Service ,22/07/20,Overseas Residential accommodation,International External Funding,Foreign And Commonwealth Office,1125328,"7,000.00",,
Crown Prosecution Service ,22/07/20,Overseas Residential accommodation,International Liaison Magistrates,Foreign And Commonwealth Office,1125328,"11,325.00",,
Crown Prosecution Service ,22/07/20,Overseas Residential accommodation,International External Funding,Foreign And Commonwealth Office,1125328,"4,925.00",,
Crown Prosecution Service ,22/07/20,FCO platform charges excluding leases,International External Funding,Foreign And Commonwealth Office,1125328,"11,800.00",,
Crown Prosecution Service ,22/07/20,Overseas Residential accommodation,International External Funding,Foreign And Commonwealth Office,1125328,"17,700.00",,
Crown Prosecution Service ,22/07/20,Overseas Residential accommodation,International External Funding,Foreign And Commonwealth Office,1125328,"11,325.00",,
Crown Prosecution Service ,22/07/20,FCO platform charges excluding leases,International External Funding,Foreign And Commonwealth Office,1125328,"5,350.00",,
Crown Prosecution Service ,22/07/20,FCO platform charges excluding leases,International External Funding,Foreign And Commonwealth Office,1125328,"10,300.00",,
Crown Prosecution Service ,22/07/20,FCO platform charges excluding leases,International External Funding,Foreign And Commonwealth Office,1125328,"10,050.00",,
Crown Prosecution Service ,22/07/20,FCO platform charges excluding leases,International External Funding,Foreign And Commonwealth Office,1125328,"5,600.00",,
Crown Prosecution Service ,22/07/20,FCO platform charges excluding leases,International External Funding,Foreign And Commonwealth Office,1125328,"16,800.00",,
Crown Prosecution Service ,22/07/20,Overseas Residential accommodation,International External Funding,Foreign And Commonwealth Office,1125328,"8,475.10",,
Crown Prosecution Service ,22/07/20,FCO platform charges excluding leases,International Liaison Magistrates,Foreign And Commonwealth Office,1125328,"8,400.00",,
Crown Prosecution Service ,22/07/20,IT services,PSN Services Contract,Century Link,130595974/1007397,"59,554.98",Y,
Crown Prosecution Service ,22/07/20,IT services,PSN Services Contract,Century Link,130770181/1007476,"27,719.79",Y,
Crown Prosecution Service ,24/07/20,Recoverable VAT control,Balance Sheet,WIPRO Holdings London,83025114,"27,818.88",Y,
Crown Prosecution Service ,24/07/20,IT services,End User Computing Contract,WIPRO Holdings London,83025114,"139,094.38",,
Crown Prosecution Service ,24/07/20,Crown Court Graduated Fee Scheme,London North Complex Casework Unit,6 Kings Bench Walk- Chambers of D Fisher & D Perry,98586 Henry LO1,"26,784.00",Y,
Crown Prosecution Service ,24/07/20,IT services,Apps and Hosting Contract,CGI IT UK Ltd,GB014041865,"564,054.52",,
Crown Prosecution Service ,24/07/20,Recoverable VAT control,Balance Sheet,CGI IT UK Ltd,GB014041865,"112,810.90",Y,
Crown Prosecution Service ,24/07/20,IT services,DTS Programme Project Cost,CGI IT UK Ltd,GB014041866,"96,089.38",,
Crown Prosecution Service ,24/07/20,Recoverable VAT control,Balance Sheet,CGI IT UK Ltd,GB014041866,"19,217.88",Y,
Crown Prosecution Service ,27/07/20,Crown Court Very High Cost Cases Full Scheme,London South Complex Casework Unit,5 King's Bench Walk,169441 stage 5,"25,830.00",Y,
Crown Prosecution Service ,27/07/20,Crown Court Very High Cost Cases Full Scheme,East Midlands Complex Casework Unit,36 Bedford Row,194056-SI-Stage 2,"28,224.67",Y,
Crown Prosecution Service ,27/07/20,IT services,ERP Project: Programme,Accenture (UK) Ltd London,3003470681,"34,800.00",Y,
Crown Prosecution Service ,27/07/20,Crown Court Very High Cost Cases Full Scheme,Yorkshire and Humberside Complex Casework Unit,Park Square Barristers (No 6 and Sovereign merged),397427   KMQC,"30,474.00",Y,
Crown Prosecution Service ,27/07/20,IT services,DTS Programme Project Cost,CGI IT UK Ltd,GB014041919,"27,161.44",Y,
Crown Prosecution Service ,29/07/20,IT services,DTS Programme Project Cost,WIPRO Holdings London,83025489,"31,662.00",Y,
Crown Prosecution Service ,29/07/20,IT services,DTS Programme Project Cost,WIPRO Holdings London,83025502,"142,776.00",Y,
Crown Prosecution Service ,29/07/20,IT services,DTS Programme Project Cost,WIPRO Holdings London,83025503,"50,763.60",Y,
Crown Prosecution Service ,29/07/20,IT Professional Services Design & Development Hardware & Software: Non Capital Purchases,DTS Programme Project Cost,Equal Experts London,INV-7415,"106,254.00",Y,
Crown Prosecution Service ,29/07/20,Other Staff Costs,Finance Operations,Edenred,INV22259321,423.00,,
Crown Prosecution Service ,29/07/20,Salary sacrifice suspense,Balance Sheet,Edenred,INV22259321,"45,065.60",,
Crown Prosecution Service ,30/07/20,IT services,DTS Programme Project Cost,CGI IT UK Ltd,GB014042420,"75,938.36",Y,
Crown Prosecution Service ,30/07/20,IT services,DTS Programme Project Cost,CGI IT UK Ltd,GB014042445,"25,271.89",Y,
Crown Prosecution Service ,31/07/20,IT Professional Services Design & Development Hardware & Software: Non Capital Purchases,DTS Programme Project Cost,eSynergy Solutions Ltd,CPS006 1,"58,140.00",Y,
